[Event "Israeli Team-ch 2023"]
[Site "Petah Tikva"]
[Date "2023.02.10"]
[Round "7.23"]
[White "Ben Ari, Yannay"]
[Black "Postny, Evgeny"]
[Result "0-1"]
[ECO "C55"]
[WhiteElo "2406"]
[BlackElo "2556"]
[Annotator "TA"]
[PlyCount "76"]
[EventDate "2023.01.13"]
[EventCountry "ISR"]
[SourceTitle "playchess.com"]
[Source "ChessBase"]
[SourceQuality "1"]
[TimeControl "40/5400+30:1800+30"]

{[%evp 19,76,18,22,16,28,3,17,19,34,32,26,24,39,24,40,42,33,23,67,34,38,37,31,0,37,20,31,20,56,31,47,13,25,10,11,18,21,14,48,66,57,70,97,97,97,96,54,0,0,0,0,0,0,-103,-101,-92,-105,-1271,-1233]} 1. e4 {[%emt 0:01:23]} e5 {[%emt 0:00:07]} 2. Nf3 {[%emt 0:00:28]} Nc6 {[%emt 0:00:07]} 3. Bc4 {[%emt 0:00:10]} Nf6 {[%emt 0:00:11]} 4. d3 {[%emt 0:00:22]} Be7 {[%emt 0:00:27]} 5. O-O {[%emt 0:06:09]} d6 {[%emt 0:00:28]} 6. c3 {[%emt 0:13:48]} O-O {[%emt 0:00:50]} 7. Bb3 {[%emt 0:00:17]} Na5 {[%emt 0:01:07]} 8. Bc2 {[%emt 0:00:05]} c5 {[%emt 0:00:06]} 9. Nbd2 {[%emt 0:00:23][%cal Bb1d2,Bd2f1,Bf1g3][%mdl 32]} Nc6 {[%emt 0:00:41]} 10. Re1 {[%emt 0:00:13]} Re8 {[%emt 0:04:03]} 11. Nf1 {[%emt 0:02:07] C55: Two Knights: 4 d3, 4 d4 exd4 5 e5 and Max Lange Attack.} Bf8 {[%emt 0:00:11]} 12. Ng3 {[%emt 0:00:14]} g6 {[%emt 0:05:08]} 13. h3 {[%emt 0:01:37] The position is equal.} Bg7 {[%emt 0:05:54]} 14. Be3 {[%emt 0:05:27]} Bd7 {[%emt 0:06:01]} 15. Qd2 {[%emt 0:03:39]} Rc8 {[%emt 0:06:12]} 16. Rad1 {[%emt 0:13:44]} Qc7 {[%emt 0:04:03][%cal Oc6d4] [#]} 17. Rc1 $146 {[%emt 0:11:28]} (17. Bh6 {with more complications.} b5 18. Bb3 a5 19. a4) ({Predecessor:} 17. Bb1 a5 18. a3 a4 19. Bh6 b5 20. Nf5 Bxf5 21. exf5 d5 22. d4 cxd4 23. cxd4 {0-1 Schmidt,M (2015)-Busemann,S (1998) Saarland-ch MA 85th 2010 (4)}) 17... Rcd8 {[%emt 0:07:43]} 18. b4 {[%emt 0:06:19]} b6 {[%emt 0:15:54]} 19. a3 {[%emt 0:04:06]} d5 {[%emt 0:05:24]} 20. Bg5 {[%emt 0:06:34] aiming for Bxf6.} Be6 {[%emt 0:04:51]} 21. Qe3 {[%emt 0:05:59]} d4 {[%emt 0:12:33]} 22. cxd4 {[%emt 0:00:10]} cxd4 {[%emt 0:01:00]} 23. Qd2 {[%emt 0:00:06] [#] And now Ba4 would win.} Qd6 {[%emt 0:04:17]} 24. Ba4 {[%emt 0:00:50]} Bd7 {[%emt 0:00:13]} 25. Bb3 {[%emt 0:04:42]} Rc8 {[%emt 0:01:33]} 26. Qa2 {[%emt 0:02:47]} Nd8 {[%emt 0:02:05]} 27. Rxc8 {[%emt 0:04:27]} Bxc8 {[%emt 0:00:04]} 28. Rc1 {[%emt 0:00:17]} Ne6 {[%emt 0:01:42] [#]} (28... Bd7 {simplifies} 29. Bd2 h6 30. Bc4 Ne6) 29. Nf5 $1 {[%emt 0:01:19]} gxf5 {[%emt 0:01:47]} 30. exf5 {[%emt 0:00:02]} e4 {[%emt 0:06:33]} 31. fxe6 {[%emt 0:01:42]} Bxe6 {[%emt 0:00:05]} 32. Bxe6 {[%emt 0:01:09]} fxe6 {[%emt 0:00:41][%cal Bf7e6,Be6d5,Bd5e4,Be4e3,Be3e2][%mdl 32]} 33. Nd2 {[%emt 0:04:03]} ({Better is} 33. Bxf6 $14 exf3 34. Bxg7 Kxg7 35. gxf3) 33... Qd5 $36 {[%emt 0:02:08][%mdl 2048] Black has good play.} 34. Qxd5 {[%emt 0:00:15]} exd5 {[%emt 0:00:04]} 35. Bxf6 {[%emt 0:00:55]} Bxf6 {[%emt 0:00:05]} 36. dxe4 {[%emt 0:00:41]} (36. Re1 $11) 36... dxe4 {[%emt 0:00:40]} 37. Re1 {[%emt 0:00:10]} e3 {[%emt 0:00:41]} 38. Nf3 {[%emt 0:00:01][%mdl 8192]} (38. fxe3 $17 Bh4 39. g3 Bxg3 40. Re2) 38... e2 {[%emt 0:00:30] Weighted Error Value: White=0.38/Black=0.11 (very precise)} 0-1

[Event "Israeli Team-ch 2023"]
[Site "Petah Tikva"]
[Date "2023.02.10"]
[Round "7.24"]
[White "Huzman, Alexander"]
[Black "Mordechai, Hanan"]
[Result "1/2-1/2"]
[ECO "D46"]
[WhiteElo "2526"]
[BlackElo "2353"]
[Annotator "TA"]
[PlyCount "105"]
[EventDate "2023.01.13"]
[EventCountry "ISR"]
[SourceTitle "playchess.com"]
[Source "ChessBase"]
[SourceQuality "1"]
[TimeControl "40/5400+30:1800+30"]

{[%evp 14,105,0,0,1,-7,39,14,20,31,21,14,24,24,29,21,20,24,29,6,8,12,25,21,22,14,18,14,20,13,18,38,30,25,41,42,48,41,45,21,35,0,0,0,8,0,0,0,0,0,0,0,0,0,0,0,0,0,0,0,0,0,0,0,0,0,0,0,0,0,0,0,0,0,0,0,0,0,0,0,0,0,0,0,0,0,0,0,0,0,0,0,0,0]} 1. Nf3 {[%emt 0:01:09]} Nf6 {[%emt 0:00:10]} 2. c4 {[%emt 0:01:16]} c6 {[%emt 0:00:18]} 3. Nc3 {[%emt 0:00:27]} d5 {[%emt 0:00:06]} 4. e3 {[%emt 0:00:05]} e6 {[%emt 0:00:11]} 5. b3 {[%emt 0:02:20]} Nbd7 {[%emt 0:00:33]} 6. Bb2 {[%emt 0:00:50]} Bd6 {[%emt 0:00:14]} 7. d4 {[%emt 0:00:04]} O-O {[%emt 0:00:14]} 8. Bd3 {[%emt 0:00:36]} Re8 {[%emt 0:02:06] D46: Semi-Slav: 5 e3 Nbd7 6 Bd3, Black avoids the Meran.} 9. Qc2 {[%emt 0:13:28]} dxc4 {[%emt 0:05:05]} (9... e5 $11 {is more appropriate.} 10. Be2 e4) 10. Bxc4 {[%emt 0:02:20]} b5 {[%emt 0:01:24]} 11. Bd3 {[%emt 0:05:46]} Bb7 {[%emt 0:01:15]} 12. O-O {[%emt 0:00:37]} a6 {[%emt 0:05:17]} 13. Ng5 {[%emt 0:06:50][%cal Rd3h7]} h6 {[%emt 0:10:21]} (13... Bxh2+ {with more complications.} 14. Kh1 g6 15. Nxf7 Kxf7 16. Kxh2 c5) 14. Nge4 {[%emt 0:00:24] [#]} Bf8 $146 {[%emt 0:02:16]} ({Predecessor:} 14... Be7 15. a3 c5 16. dxc5 Nxc5 17. Nxc5 Bxc5 18. Ne4 Be7 19. Nxf6+ Bxf6 20. Bh7+ Kh8 {½-½ Benitez Lozano,J (2340)-Medina Diaz,R (2299) Mexico City Fenamac-A 3rd 2021 (3)}) 15. Nxf6+ {[%emt 0:10:56]} Nxf6 {[%emt 0:00:18]} 16. Rfd1 {[%emt 0:00:12]} Qb6 {[%emt 0:05:28]} 17. a4 {[%emt 0:00:12]} Rac8 {[%emt 0:04:32]} 18. Qe2 {[%emt 0:00:15]} Bd6 {[%emt 0:07:10]} 19. h3 {[%emt 0:03:32]} e5 {[%emt 0:04:41]} 20. Ne4 {[%emt 0:04:21]} Nxe4 {[%emt 0:01:06]} 21. Bxe4 {[%emt 0:00:35]} c5 $1 {[%emt 0:25:26]} 22. dxc5 {[%emt 0:05:49]} Bxc5 {[%emt 0:00:18]} 23. Bf5 {[%emt 0:00:38]} Rb8 {[%emt 0:08:39]} 24. axb5 {[%emt 0:10:55]} axb5 {[%emt 0:00:06]} 25. Rac1 {[%emt 0:00:31]} (25. Qg4 {keeps more tension.} b4 26. Qg3 Bd6 27. Rd2) 25... b4 {[%emt 0:03:34]} 26. Qg4 {[%emt 0:04:34]} Bf8 {[%emt 0:02:20]} 27. Be4 {[%emt 0:07:31]} (27. Qg3 $5 {[%cal Rb2e5]} Rbd8 28. Bxe5 Rxd1+ 29. Rxd1 $14) 27... Bxe4 {[%emt 0:03:24] The position is equal.} 28. Qxe4 {[%emt 0:00:04]} Rbd8 {[%emt 0:00:04]} 29. Qc4 {[%emt 0:04:03]} (29. Bxe5 $2 {is the wrong capture.} Rxd1+ 30. Rxd1 Qe6 $19) 29... Rxd1+ {[%emt 0:00:28]} 30. Rxd1 {[%emt 0:00:08]} Qe6 {[%emt 0:00:43]} 31. Qxe6 {[%emt 0:02:17]} Rxe6 $11 {[%emt 0:00:01][%mdl 4096] Endgame KRB-KRB} 32. Kf1 {[%emt 0:00:06]} f6 {[%emt 0:00:48]} 33. Ke2 {[%emt 0:01:00]} Kf7 {[%emt 0:02:12]} 34. Rd7+ {[%emt 0:03:28]} Be7 {[%emt 0:00:37]} 35. Rc7 {[%emt 0:00:27]} Ra6 {[%emt 0:01:08]} 36. Kd3 {[%emt 0:00:48]} Ke6 {[%emt 0:01:06]} 37. g4 {[%emt 0:00:21]} Rd6+ {[%emt 0:02:23]} 38. Kc2 {[%emt 0:00:35]} h5 {[%emt 0:02:19]} 39. gxh5 {[%emt 0:02:23]} Rd8 {[%emt 0:00:05]} 40. f4 {[%emt 0:01:59]} exf4 {[%emt 0:00:38]} 41. exf4 {[%emt 0:32:06]} Rd5 {[%emt 0:08:09]} 42. Bc1 {[%emt 0:00:00]} Rxh5 {[%emt 0:00:25]} 43. Bd2 {[%emt 0:00:00]} g6 {[%emt 0:04:05]} (43... Rxh3 44. f5+ Kxf5 45. Rxe7 $18) 44. Rc4 {[%emt 0:00:00]} Kf5 {[%emt 0:04:13]} 45. Rc7 $1 {[%emt 0:00:00]} Ke6 {[%emt 0:02:56]} 46. Rc4 {[%emt 0:00:00]} Rxh3 {[%emt 0:00:25]} 47. Re4+ {[%emt 0:00:00]} Kf7 {[%emt 0:01:45]} 48. Bxb4 {[%emt 0:00:00]} Bxb4 {[%emt 0:00:19]} 49. Rxb4 {[%emt 0:00:00]} Ke6 {[%emt 0:02:14]} 50. Rd4 {[%emt 0:00:00]} g5 {[%emt 0:00:28]} 51. fxg5 {[%emt 0:00:00]} fxg5 {[%emt 0:00:02]} 52. b4 {[%emt 0:00:00]} Rh4 {[%emt 0:01:33]} 53. Kd3 {[%emt 0:00:00] Weighted Error Value: White=0.04 (flawless) /Black=0.03 (flawless)} 1/2-1/2

[Event "Israeli Team-ch 2023"]
[Site "Petah Tikva"]
[Date "2023.02.10"]
[Round "7.25"]
[White "Gorshtein, Ido"]
[Black "Sutovsky, Emil"]
[Result "1/2-1/2"]
[ECO "A36"]
[WhiteElo "2498"]
[BlackElo "2615"]
[Annotator "TA"]
[PlyCount "100"]
[EventDate "2023.01.13"]
[EventCountry "ISR"]
[SourceTitle "playchess.com"]
[Source "ChessBase"]
[SourceQuality "1"]
[TimeControl "40/5400+30:1800+30"]

{[%evp 9,100,8,9,11,7,6,8,8,14,0,0,0,0,-4,0,-17,0,12,18,26,69,38,37,48,48,48,36,31,35,0,0,0,13,5,6,0,52,48,50,63,67,59,45,41,65,24,18,21,21,21,35,15,37,50,36,38,49,47,51,0,0,0,0,8,31,0,0,0,0,0,0,0,21,28,19,20,41,0,0,0,0,0,0,0,0,0,0,0,0,0,0,0,0]} 1. c4 {[%emt 0:00:55]} g6 {[%emt 0:00:32]} 2. Nc3 {[%emt 0:00:19]} c5 {[%emt 0:00:12]} 3. g3 {[%emt 0:00:08]} Bg7 {[%emt 0:00:05]} 4. Bg2 {[%emt 0:00:02]} Nc6 {[%emt 0:00:17]} 5. b3 {[%emt 0:00:02]} d6 {[%emt 0:01:38]} 6. Bb2 {[%emt 0:00:13] A36: Symmetrical English vs ...g6: 4 Bg2 Bg7.} e5 {[%emt 0:01:05]} 7. e3 {[%emt 0:01:14]} Nge7 {[%emt 0:06:18]} 8. Nge2 {[%emt 0:01:55]} Be6 {[%emt 0:01:46]} 9. Nd5 {[%emt 0:12:09]} Bxd5 {[%emt 0:00:46][%mdl 64] Remove Defender} 10. cxd5 {[%emt 0:00:09]} Nb4 {[%emt 0:00:02]} 11. O-O {[%emt 0:00:35]} Nbxd5 {[%emt 0:01:38]} 12. d4 {[%emt 0:00:13]} exd4 {[%emt 0:04:30]} 13. exd4 {[%emt 0:00:13] [#]} Qa5 $146 {[%emt 0:04:12] Wards off Qd2} ({Predecessor:} 13... O-O 14. Qd2 Qc8 15. Rac1 b6 16. dxc5 Bxb2 17. Qxb2 dxc5 18. Nc3 Nxc3 19. Bxa8 Nxa2 {1-0 Kopasz,R (2316)-Perisic,R (2228) Vojvodina-chT 2nd League 2020 (5.2)}) 14. Rb1 {[%emt 0:16:02]} O-O-O {[%emt 0:15:37][%cal Ba8d8,Bd8d6,Bd6c6][%mdl 32]} 15. dxc5 {[%emt 0:17:35]} Bxb2 {[%emt 0:00:24]} 16. cxd6 {[%emt 0:01:02]} Rxd6 {[%emt 0:02:13] aiming for ...Be5.} 17. Rxb2 {[%emt 0:00:25][%cal Oe2c3]} Rhd8 {[%emt 0:01:43] [#]} 18. b4 $1 {[%emt 0:03:21]} Qa3 {[%emt 0:04:08]} 19. Qb3 {[%emt 0:07:42]} Qxb3 {[%emt 0:02:34]} 20. Rxb3 {[%emt 0:00:02]} Rc6 {[%emt 0:05:41]} 21. Rd1 {[%emt 0:06:30] Threatens to win with Rbd3.} Rc2 {[%emt 0:02:10][%csl LRa2,LRe2]} 22. Bf3 {[%emt 0:00:27]} Rxa2 {[%emt 0:25:40]} (22... Nc7 $11 23. Rxd8+ Kxd8) 23. Rbd3 $1 $14 {[%emt 0:14:00] And now Nf4 would win.} Rd7 $1 {[%emt 0:01:34][%cal Oa2c2]} 24. Kf1 $1 {[%emt 0:05:35][%cal Rf3d5]} ({Much weaker is} 24. Bxd5 Rxd5 25. Nf4 Rxd3 26. Nxd3 Nd5 $17) 24... Nb6 {[%emt 0:00:28]} 25. Rxd7 {[%emt 0:00:18]} Nxd7 {[%emt 0:00:02] [#]} 26. Bxb7+ $1 {[%emt 0:00:10][%mdl 64] Decoy} Kd8 {[%emt 0:01:11]} (26... Kc7 27. Nc3) 27. Nc3 {[%emt 0:01:49]} (27. Nd4 $5 {[%cal Rd4c6]} Kc7 28. Nb5+ Kd8 29. Bg2 $14) 27... Rc2 {[%emt 0:06:32]} 28. Nb5 {[%emt 0:01:01]} Rc4 {[%emt 0:01:47]} 29. Rb1 {[%emt 0:01:42]} (29. Nxa7 $2 {perishes.} Rc7 30. Ba6 Rxa7 $19) 29... f5 {[%emt 0:04:40]} 30. Rb2 {[%emt 0:04:16]} (30. Nxa7 $2 {loses.} Rc7 31. Bg2 Rxa7 $19) 30... g5 {[%emt 0:02:12]} 31. Bf3 {[%emt 0:01:45]} (31. Nxa7 $2 Rc7 32. Nb5 Rxb7 $19) 31... a6 {[%emt 0:01:58]} 32. Nd6 {[%emt 0:00:17]} Rc1+ {[%emt 0:00:02]} 33. Kg2 {[%emt 0:00:50] Strongly threatening Nf7+.} Ne5 {[%emt 0:00:07] Against Nf7+. White must now prevent ...Nd3.} 34. Nb7+ {[%emt 0:02:15]} (34. Be2 $5 {[%cal Rb4b5]}) 34... Kc7 {[%emt 0:00:52]} 35. Nc5 {[%emt 0:00:06]} Nxf3 {[%emt 0:01:41]} 36. Kxf3 $11 {[%emt 0:00:16][%mdl 4096] Endgame KRN-KRN} Rc3+ {[%emt 0:01:38]} 37. Ke2 {[%emt 0:00:50]} a5 {[%emt 0:00:30]} 38. Ne6+ {[%emt 0:00:27]} Kd6 {[%emt 0:00:30]} 39. Nd4 {[%emt 0:01:10] Nb5+ would be deadly.} Rc4 $1 {[%emt 0:00:12][%csl LRb4,LRd4]} 40. Nb5+ {[%emt 0:00:09]} Kc6 {[%emt 0:00:19]} (40... Ke5 $5 {[%cal Ra5b4]}) 41. bxa5 {[%emt 0:30:17]} Ra4 {[%emt 0:08:41]} 42. Na7+ {[%emt 0:00:00]} Kc7 {[%emt 0:05:17]} 43. Rc2+ {[%emt 0:00:00]} Kd7 {[%emt 0:02:08] The position is equal.} 44. Rc5 {[%emt 0:00:00]} Kd6 {[%emt 0:01:28]} 45. Rb5 {[%emt 0:00:00]} Ra2+ {[%emt 0:01:15]} 46. Kf1 {[%emt 0:00:00]} Nd5 {[%emt 0:00:53] Wards off Rb6+} 47. Nc8+ {[%emt 0:00:00]} Kc6 {[%emt 0:00:06]} 48. Na7+ {[%emt 0:00:00]} Kd6 {[%emt 0:00:04]} 49. Nc8+ {[%emt 0:00:00]} Kc6 {[%emt 0:00:32]} 50. Na7+ {[%emt 0:00:00]} Kd6 {[%emt 0:00:09] Weighted Error Value: White=0.07 (flawless) /Black=0.07 (flawless)} 1/2-1/2

[Event "Israeli Team-ch 2023"]
[Site "Petah Tikva"]
[Date "2023.02.10"]
[Round "7.26"]
[White "Smirin, Ilia"]
[Black "Boruchovsky, Avital"]
[Result "1-0"]
[ECO "B58"]
[WhiteElo "2596"]
[BlackElo "2553"]
[Annotator "TA"]
[PlyCount "93"]
[EventDate "2023.01.13"]
[EventCountry "ISR"]
[SourceTitle "playchess.com"]
[Source "ChessBase"]
[SourceQuality "1"]
[TimeControl "40/5400+30:1800+30"]

{[%evp 21,93,0,13,10,12,11,34,23,41,37,54,25,45,25,74,39,61,40,53,27,79,20,22,23,17,16,9,21,19,24,49,0,0,0,0,0,0,8,112,99,100,24,167,154,149,0,0,0,0,0,1306,1306,1233,950,1200,1200,1182,1070,1201,1158,1104,1149,1014,1000,1191,1071,962,780,3428,3354,2752,2291,29993,12839]} 1. Nf3 {[%emt 0:14:52] Wells,Peter K} c5 {[%emt 0:04:42]} 2. e4 {[%emt 0:00:08]} d6 {[%emt 0:00:11]} 3. d4 {[%emt 0:00:12]} cxd4 {[%emt 0:00:07]} 4. Nxd4 {[%emt 0:00:02]} Nf6 {[%emt 0:00:11]} 5. Nc3 {[%emt 0:00:04]} Nc6 {[%emt 0:00:05]} 6. Be2 {[%emt 0:00:47]} e5 {[%emt 0:01:14]} 7. Nf3 {[%emt 0:00:06]} h6 {[%emt 0:01:27]} 8. O-O {[%emt 0:00:22]} Be7 {[%emt 0:00:03]} 9. Re1 {[%emt 0:00:47]} O-O {[%emt 0:00:15]} 10. h3 {[%emt 0:00:11]} a6 {[%emt 0:06:55]} 11. Bf1 {[%emt 0:00:51]} Qc7 {[%emt 0:15:34]} 12. Nh2 {[%emt 0:01:50] B58: Classical Sicilian: 6 Be2.} b5 {[%emt 0:04:00]} 13. Ng4 {[%emt 0:03:26]} Nxg4 {[%emt 0:09:11]} 14. hxg4 {[%emt 0:07:27] [#] White is slightly better.} Qd7 $146 {[%emt 0:10:36]} ({Predecessor:} 14... Be6 15. Nd5 Qb7 16. Be3 Bg5 17. g3 Rfd8 18. Bxg5 hxg5 19. Qd2 Rac8 20. c3 f6 {0-1 Baramidze,D (2242)-Meins,G (2426) GER-ch 72nd Heringsdorf 2000 (8)}) 15. a4 {[%emt 0:09:12]} bxa4 {[%emt 0:05:07]} 16. Nd5 {[%emt 0:07:49] Threatens to win with Nb6.} Bd8 {[%emt 0:00:24] Wards off Nb6} 17. Rxa4 {[%emt 0:00:38]} Ne7 {[%emt 0:01:29]} (17... Qxg4 $11 18. Qxg4 Bxg4) 18. Nc3 $1 $16 {[%emt 0:05:22] White has more active pieces. The black rooks are badly placed.} Nc6 {[%emt 0:03:30]} 19. Be3 {[%emt 0:03:52]} Rb8 {[%emt 0:06:49]} 20. Bxa6 {[%emt 0:07:34]} Ba5 {[%emt 0:00:47]} (20... Bxa6 $11 {remains equal.} 21. Rxa6 Rxb2) 21. Be2 {[%emt 0:09:00]} ({Of course not} 21. Bxc8 Rfxc8 22. Qa1 Bxc3 23. bxc3 Qxg4 $11) ({White should play} 21. Bf1 $16) 21... Bxc3 $11 {[%emt 0:03:25]} ({Much less strong is} 21... Rxb2 22. Rxa5 Nxa5 23. Qa1 $16) 22. bxc3 {[%emt 0:00:04]} Nd4 $1 {[%emt 0:00:16]} 23. Rxd4 {[%emt 0:01:45]} exd4 {[%emt 0:00:05]} 24. cxd4 {[%emt 0:01:21]} Re8 {[%emt 0:01:52]} 25. f3 {[%emt 0:01:28][%cal Bf2f3,Bf3f4,Bf4f5][%mdl 32]} d5 {[%emt 0:02:33]} 26. e5 {[%emt 0:04:16]} (26. Bd3 $14 {should be considered.}) 26... Qa4 {[%emt 0:00:16]} 27. f4 {[%emt 0:02:50]} Rb2 {[%emt 0:02:28][%cal Oc8d7]} 28. Bf3 {[%emt 0:01:20]} Qc4 {[%emt 0:02:30]} 29. f5 {[%emt 0:00:48]} Bb7 {[%emt 0:02:41]} (29... h5 $11 {keeps the balance.}) 30. g5 $16 {[%emt 0:03:32]} hxg5 {[%emt 0:00:32]} (30... Rxc2 $2 31. gxh6 Ra8 32. hxg7 $18) 31. Bxg5 {[%emt 0:00:04]} ({White should try} 31. e6 $16 f6 32. Bh5) 31... Bc6 {[%emt 0:10:08]} (31... Rxc2 $2 32. Bh5 Qa2 33. Qg4 $18) (31... Qxc2 $11 {and Black has nothing to worry.} 32. Qxc2 Rxc2) 32. e6 $18 {[%emt 0:01:34]} f6 {[%emt 0:01:03] [#]} 33. Bxf6 {[%emt 0:05:51]} gxf6 $11 {[%emt 0:00:12]} 34. Bh5 {[%emt 0:00:01] Hoping for Qg4+.} Qxc2 {[%emt 0:00:28][%csl Gb2][%cal Rc2g2]} 35. Qg4+ {[%emt 0:01:09]} Kh8 $2 {[%emt 0:04:05][%mdl 8192]} (35... Kf8 $11 36. Bxe8 Qf2+ 37. Kh2 Qxe1 38. Bxc6 Rb1 39. Bxd5 Qg1+ 40. Kg3 (40. Kh3 Qh1+ 41. Kg3 Qe1+ 42. Kh3 Qh1+ 43. Kg3 Qe1+ 44. Kh3 Qh1+ $11) 40... Qe1+ 41. Kh3 Qh1+ 42. Kg3 Qe1+ 43. Kh3 Qh1+ 44. Kg3 Qe1+) 36. Bg6 $18 {[%emt 0:02:13] Threatening mate with Qh3+.} Qf2+ {[%emt 0:02:22]} 37. Kh2 {[%emt 0:00:04] Intending Qh5+ and mate.} Qxg2+ {[%emt 0:00:51]} 38. Qxg2 {[%emt 0:00:05]} Rxg2+ {[%emt 0:00:04]} 39. Kxg2 {[%emt 0:00:08][%mdl 4096] Endgame KRB-KRB} Re7 {[%emt 0:00:14]} 40. Kf3 {[%emt 0:02:14]} Kg7 {[%emt 0:00:17]} 41. Rc1 {[%emt 0:34:07]} Ba4 {[%emt 0:30:52]} 42. Rh1 {[%emt 0:01:32]} Bc2 {[%emt 0:00:00]} 43. Kf4 {[%emt 0:00:00]} Kg8 {[%emt 0:00:00]} 44. Rc1 {[%emt 0:00:00]} Be4 {[%emt 0:00:00]} 45. Rc8+ {[%emt 0:00:00]} Kg7 {[%emt 0:00:00]} 46. Rd8 {[%emt 0:00:00]} Kh6 {[%emt 0:00:00]} 47. Bf7 {[%emt 0:00:00] An entertaining game by Smirin.   Weighted Error Value: White=0.22 (precise) /Black=0.52} (47. Rd7 $142 Rg7 48. Rxg7 Bxf5 49. Kxf5 Kxg7 50. e7 Kh6 51. e8=Q Kg7 52. Qf7+ Kh8 53. Qh7#) 1-0